bitfinex-derivatives/quotes_BTCF0:USTF0_20251215
["timestamp","ask_amount","ask_price","bid_price","bid_amount"]
[1765769953131,0.05805,89289.0,89288.0,0.41937]
[1765769954836,0.08160866,89289.0,89288.0,0.41937]
[1765769961528,0.11836505,89289.0,89288.0,0.41937]
[1765769961732,0.14192371,89289.0,89288.0,0.41937]
[1765769962742,0.02555866,89289.0,89288.0,0.4371]
[1765769963338,0.08160866,89289.0,89288.0,0.4371]
[1765769963538,0.08160866,89289.0,89288.0,0.41937]
[1765769964344,0.14192371,89289.0,89288.0,0.41937]
[1765769965345,0.08160866,89289.0,89288.0,0.41937]
[1765769965745,0.14193502,89289.0,89288.0,0.41937]
[1765769967444,0.08160866,89289.0,89288.0,0.41937]
[1765769967647,0.05311866,89289.0,89288.0,0.4341]
[1765769967837,0.02555866,89289.0,89288.0,0.4341]
[1765769968442,0.08291866,89289.0,89288.0,0.4341]
[1765769972046,0.08291866,89289.0,89288.0,0.41937]
[1765769974155,0.08291866,89289.0,89288.0,0.05857]
[1765769974646,0.02555866,89289.0,89288.0,0.05857]
[1765769979754,0.002,89289.0,89288.0,0.05857]
[1765769982253,0.002,89289.0,89288.0,0.07649]
[1765769986659,0.00016792,89300.0,89299.0,0.05669]
[1765769986857,0.13887563,89324.0,89299.0,0.05669]
[1765769986858,0.06033567,89315.0,89314.0,0.0382255]
[1765769987060,0.05163018,89317.0,89316.0,0.07461]
[1765769987253,0.07463,89330.0,89329.0,0.02703]
[1765769987450,0.07463,89330.0,89324.0,0.0111942]
[1765769987451,0.05736,89325.0,89324.0,0.0678842]
[1765769987650,0.07463,89325.0,89324.0,0.05669]
[1765769988358,0.05736,89325.0,89324.0,0.05669]
[1765769989456,0.05936,89325.0,89324.0,0.05769]
[1765769990048,0.004,89325.0,89324.0,0.05769]
[1765769991163,0.06136,89325.0,89324.0,0.05769]
[1765769992653,0.0298,89325.0,89324.0,0.05769]
[1765769992854,0.0308,89325.0,89324.0,0.05769]
[1765769993365,0.001,89325.0,89324.0,0.05769]
[1765769993666,0.003,89325.0,89324.0,0.05769]
[1765769994161,0.00016792,89333.0,89332.0,0.0678832]
[1765769994361,0.00016792,89333.0,89332.0,0.4286832]
[1765769995263,0.18987801,89340.0,89339.0,0.0678824]
[1765769995453,0.05736,89340.0,89339.0,0.0678824]
[1765769996574,0.07863,89340.0,89339.0,0.0688824]
[1765769996861,0.07863,89340.0,89339.0,0.05769]
[1765769997062,0.08263,89340.0,89339.0,0.002]
[1765769997368,0.08263,89340.0,89339.0,0.02997]
[1765769997569,0.08263,89340.0,89339.0,0.05712]
[1765769997758,0.08263,89340.0,89339.0,0.002]
[1765769998069,0.44343,89340.0,89339.0,0.002]
[1765770000058,0.44343,89340.0,89339.0,0.0131924]
[1765770000973,0.06536,89340.0,89339.0,0.0683124]
[1765770001155,0.008,89340.0,89339.0,0.4291124]
[1765770002768,0.006,89340.0,89339.0,0.4291124]
[1765770003078,0.004,89340.0,89339.0,0.4291124]
[1765770010379,0.05835,89340.0,89339.0,0.4291124]
[1765770010565,0.07566,89340.0,89339.0,0.4291124]
[1765770011072,0.05835,89340.0,89339.0,0.4291124]
[1765770011265,0.07566,89340.0,89339.0,0.0131924]
[1765770011465,0.07566,89340.0,89339.0,0.0411624]
[1765770011673,0.07566,89340.0,89339.0,0.0683124]
[1765770012265,0.05835,89340.0,89339.0,0.0683124]
[1765770014265,0.1183786,89340.0,89339.0,0.0683124]
[1765770014464,0.05835,89340.0,89339.0,0.0683124]
[1765770014669,0.07566,89340.0,89339.0,0.0683124]
[1765770017569,0.07566,89340.0,89339.0,0.0131924]
[1765770018178,0.07566,89340.0,89339.0,0.0683124]
[1765770020673,0.07566,89340.0,89339.0,0.002]
[1765770021378,0.08131925,89340.0,89339.0,0.002]
[1765770021972,0.05435,89317.0,89316.0,0.06648322]
[1765770022476,0.05435,89320.0,89319.0,0.05512]
[1765770023776,0.11461475,89320.0,89319.0,0.05512]
[1765770023980,0.05435,89320.0,89319.0,0.05512]
[1765770024278,0.11559694,89320.0,89319.0,0.05612]
[1765770024780,0.11659694,89320.0,89319.0,0.05812]
[1765770025370,0.05635,89320.0,89319.0,0.05812]
[1765770025677,0.05835,89320.0,89319.0,0.05712]
[1765770026480,0.06035,89320.0,89319.0,0.05712]
[1765770031872,0.07662,89320.0,89319.0,0.05712]
[1765770032275,0.06035,89320.0,89319.0,0.05712]
[1765770032972,0.07662,89320.0,89319.0,0.05712]
[1765770033172,0.07662,89320.0,89319.0,0.002]
[1765770037482,0.07662,89320.0,89319.0,0.06142]
[1765770037877,0.06035,89320.0,89319.0,0.06142]
[1765770038184,0.07662,89320.0,89319.0,0.06142]
[1765770039477,0.06035,89320.0,89319.0,0.06142]
[1765770043492,0.07662,89320.0,89319.0,0.06142]
[1765770043687,0.06035,89320.0,89319.0,0.06142]
[1765770044883,0.07662,89320.0,89319.0,0.06142]
[1765770045085,0.06035,89320.0,89319.0,0.06142]
[1765770046187,0.12059694,89320.0,89319.0,0.06142]
[1765770046794,0.13686694,89320.0,89319.0,0.06142]
[1765770046994,0.07662,89320.0,89319.0,0.06142]
[1765770047291,0.13686694,89320.0,89319.0,0.06142]
[1765770047895,0.07662,89320.0,89319.0,0.06142]
[1765770050289,0.15701622,89320.0,89319.0,0.06142]
[1765770050898,0.07662,89320.0,89319.0,0.002]
[1765770052096,0.07662,89320.0,89319.0,0.03189]
[1765770052601,0.07662,89320.0,89319.0,0.002]
[1765770055790,0.07662,89320.0,89319.0,0.0131949]
[1765770057300,0.75995,89320.0,89319.0,0.0703049]
[1765770057507,0.84053167,89320.0,89319.0,0.0703049]
[1765770058100,0.75995,89320.0,89319.0,0.0703049]
[1765770059208,0.77748,89320.0,89319.0,0.0430849]
[1765770059611,0.77748,89320.0,89319.0,0.0131949]
[1765770059818,0.77748,89320.0,89319.0,0.002]
[1765770060111,0.77748,89320.0,89319.0,0.05685]
[1765770060610,0.77748,89320.0,89319.0,0.002]
[1765770061205,0.0559,89303.0,89302.0,0.0660469]
[1765770064010,0.0559,89303.0,89302.0,0.0680469]
[1765770064210,0.0569,89303.0,89302.0,0.0680469]
[1765770073710,0.0569,89303.0,89302.0,0.02963]
[1765770074119,0.11733756,89303.0,89302.0,0.05891]
[1765770074322,0.11733756,89303.0,89302.0,0.02963]
[1765770074517,0.0569,89303.0,89302.0,0.05891]
[1765770074721,0.0569,89303.0,89302.0,0.02963]
[1765770074916,0.0569,89303.0,89302.0,0.05891]
[1765770082222,0.11733756,89303.0,89302.0,0.05891]
[1765770085222,0.0569,89303.0,89302.0,0.05891]
[1765770085718,0.0569,89303.0,89302.0,0.002]
[1765770086222,0.0569,89303.0,89302.0,0.06056]
[1765770086430,0.75658,89303.0,89302.0,0.06056]
[1765770088415,0.0569,89303.0,89302.0,0.06056]
[1765770088724,0.75658,89303.0,89302.0,0.06056]
[1765770098533,0.83714608,89303.0,89302.0,0.06056]
[1765770098733,0.75662,89303.0,89302.0,0.06056]
[1765770098934,0.0569,89303.0,89302.0,0.06056]
[1765770100836,0.0569,89303.0,89302.0,0.002]
[1765770101027,0.13746608,89303.0,89302.0,0.002]
[1765770102532,0.13746608,89303.0,89302.0,0.03143]
[1765770102839,0.13746608,89303.0,89302.0,0.06003]
[1765770103133,0.0569,89303.0,89302.0,0.06003]
[1765770129456,0.001,89303.0,89302.0,0.42083]
[1765770130047,0.05858,89303.0,89302.0,0.42083]
[1765770136953,0.001,89303.0,89302.0,0.42083]
[1765770138561,0.02953,89303.0,89302.0,0.42083]
[1765770138956,0.05858,89303.0,89302.0,0.42083]
[1765770139462,0.02953,89303.0,89302.0,0.42083]
[1765770142761,0.001,89303.0,89302.0,0.42083]
[1765770145476,0.05858,89303.0,89302.0,0.42083]
[1765770145767,0.05858,89303.0,89302.0,0.06003]
[1765770147269,0.001,89303.0,89302.0,0.06003]
[1765770147768,0.02875,89303.0,89302.0,0.06003]
[1765770151570,0.05704,89303.0,89302.0,0.06003]
[1765770153171,0.02875,89303.0,89302.0,0.06003]
[1765770158773,0.05704,89303.0,89302.0,0.06003]
[1765770169985,0.05704,89303.0,89302.0,0.071227]
[1765770181204,0.02925,89303.0,89302.0,0.071227]
[1765770181390,0.05922,89303.0,89302.0,0.071227]
[1765770183603,0.001,89303.0,89302.0,0.071227]
[1765770184490,0.02925,89303.0,89302.0,0.071227]
[1765770184802,0.05922,89303.0,89302.0,0.071227]
[1765770185599,0.001,89303.0,89302.0,0.071227]
[1765770186300,0.05922,89303.0,89302.0,0.071227]
[1765770193194,0.11967501,89303.0,89302.0,0.071227]
[1765770194204,0.05922,89303.0,89302.0,0.071227]
[1765770200299,0.05922,89303.0,89302.0,0.002]
[1765770200800,0.05922,89303.0,89298.0,0.0111975]
[1765770200999,0.05822,89299.0,89298.0,0.0403575]
[1765770201203,0.11860223,89299.0,89298.0,0.0403575]
[1765770201403,0.11860223,89299.0,89298.0,0.0689175]
[1765770202201,0.11860223,89299.0,89298.0,0.0709175]
[1765770202806,0.11860223,89299.0,89298.0,0.0729175]
[1765770203004,0.11860223,89299.0,89298.0,0.0709175]
[1765770203312,0.05922,89299.0,89298.0,0.0729175]
[1765770203499,0.06022,89299.0,89298.0,0.0729175]
[1765770210912,0.06022,89299.0,89298.0,0.0825475]
[1765770211413,0.002,89299.0,89298.0,0.0825475]
[1765770211610,0.02911,89299.0,89298.0,0.0825475]
[1765770213413,0.05855,89299.0,89298.0,0.0825475]
[1765770213605,0.002,89299.0,89298.0,0.0825475]
[1765770213803,0.05855,89299.0,89298.0,0.0729175]
[1765770219711,0.002,89299.0,89298.0,0.0729175]
[1765770220515,0.3608,89313.0,89312.0,0.07559]
[1765770220714,0.36096792,89325.0,89319.0,0.05797]
[1765770220715,0.06038223,89320.0,89319.0,0.05797]
[1765770220910,0.06038223,89323.0,89321.0,0.05797]
[1765770221112,0.06055015,89325.0,89324.0,0.07442]
[1765770221319,0.00016792,89325.0,89324.0,0.43522]
[1765770223210,0.00016792,89325.0,89324.0,0.43622]
[1765770223527,0.00316792,89325.0,89324.0,0.43622]
[1765770224212,0.00716792,89325.0,89324.0,0.43722]
[1765770224926,0.00616792,89325.0,89324.0,0.43722]
[1765770225519,0.00316792,89325.0,89324.0,0.43622]
[1765770225719,0.00316792,89325.0,89324.0,0.43722]
[1765770225720,0.00616792,89325.0,89324.0,0.43722]
[1765770225918,0.00416792,89325.0,89324.0,0.43722]
[1765770226520,0.00116792,89325.0,89324.0,0.43622]
[1765770226720,0.00216792,89325.0,89324.0,0.43622]
[1765770227021,0.05871792,89325.0,89324.0,0.43622]
[1765770227414,0.00216792,89325.0,89324.0,0.43622]
[1765770230627,0.00216792,89325.0,89324.0,0.07542]
[1765770230813,0.00216792,89325.0,89324.0,0.43622]
[1765770238628,0.02927792,89325.0,89324.0,0.43622]
[1765770238828,0.00216792,89325.0,89324.0,0.43622]
[1765770239029,0.05705,89338.0,89337.0,0.0677726]
[1765770239225,0.05705,89338.0,89337.0,0.4285726]
[1765770240037,0.05705,89338.0,89337.0,0.0677726]
[1765770240335,0.06005,89338.0,89337.0,0.0687726]
[1765770241627,0.06305,89338.0,89337.0,0.0697726]
[1765770249148,0.12343223,89338.0,89337.0,0.0697726]
[1765770249534,0.06305,89338.0,89337.0,0.0697726]
[1765770250131,0.06305,89338.0,89337.0,0.0426326]
[1765770250734,0.06305,89338.0,89337.0,0.002]
[1765770251542,0.05705,89322.0,89321.0,0.3719946]
[1765770251731,0.05705,89322.0,89321.0,0.0406346]
[1765770252036,0.11742547,89322.0,89321.0,0.0677746]
[1765770252240,0.06037547,89324.0,89321.0,0.4285746]
[1765770252446,0.06037547,89331.0,89330.0,0.0677735]
[1765770252646,0.06037547,89332.0,89331.0,0.05658]
[1765770252844,0.08976547,89332.0,89331.0,0.05658]
[1765770253349,0.06816,89332.0,89331.0,0.02944]
[1765770253542,0.06816,89332.0,89331.0,0.05658]
[1765770254733,0.05905,89332.0,89331.0,0.05758]
[1765770255748,0.06105,89332.0,89331.0,0.05858]
[1765770256752,0.07837,89332.0,89331.0,0.05858]
[1765770259743,0.13875145,89332.0,89331.0,0.05858]
[1765770260341,0.004,89332.0,89331.0,0.05858]
[1765770260747,0.004,89332.0,89331.0,0.41938]
[1765770261450,0.004,89332.0,89331.0,0.41838]
[1765770261660,0.002,89332.0,89331.0,0.41938]
[1765770262456,0.05721792,89346.0,89345.0,0.05658]
[1765770262855,0.05721792,89346.0,89345.0,0.0677716]
[1765770263842,0.06021792,89346.0,89345.0,0.0687716]
[1765770264647,0.06321792,89346.0,89345.0,0.0697716]
[1765770268645,0.00616792,89346.0,89345.0,0.0697716]
[1765770269563,0.03349792,89346.0,89345.0,0.0697716]
[1765770270745,0.06269792,89346.0,89345.0,0.0697716]
[1765770270946,0.42349792,89346.0,89345.0,0.002]
[1765770271144,0.90399854,89346.0,89345.0,0.002]
[1765770271354,0.82349792,89346.0,89345.0,0.0008321]
[1765770271559,0.90391528,89346.0,89345.0,0.0008321]
[1765770272660,0.90943764,89346.0,89345.0,0.0008321]
[1765770273762,0.82902028,89346.0,89345.0,0.0008321]
[1765770273953,0.90943764,89346.0,89345.0,0.0008321]
[1765770278167,0.42902028,89346.0,89345.0,0.0008321]
[1765770279252,0.42902028,89346.0,89345.0,0.0565121]
[1765770279458,0.42902028,89346.0,89345.0,0.0008321]
[1765770280159,0.45254576,89346.0,89345.0,0.0008321]
[1765770283653,0.45254576,89346.0,89345.0,0.0280921]
[1765770283858,0.45254576,89346.0,89345.0,0.0565121]
[1765770285070,0.45254576,89346.0,89345.0,0.0280921]
[1765770285271,0.45254576,89346.0,89345.0,0.0008321]
[1765770300180,0.45254576,89346.0,89345.0,2.057e-05]
[1765770300580,0.55304104,89346.0,89345.0,2.057e-05]
[1765770301285,1.25228104,89346.0,89345.0,0.05771057]
[1765770301783,1.15178576,89346.0,89345.0,0.05771057]
[1765770302175,0.45254576,89346.0,89345.0,0.05771057]
[1765770310083,0.42902028,89346.0,89345.0,0.05771057]
[1765770311889,0.37249028,89346.0,89345.0,2.057e-05]
[1765770316289,0.01169028,89346.0,89345.0,2.057e-05]
[1765770317384,0.02963028,89346.0,89345.0,2.057e-05]
[1765770320593,0.39043028,89346.0,89345.0,2.057e-05]
[1765770322586,0.02963028,89346.0,89345.0,2.057e-05]
[1765770322789,0.39043028,89346.0,89345.0,2.057e-05]
[1765770335893,0.42293792,89346.0,89345.0,0.05704057]
[1765770336089,0.39450792,89346.0,89345.0,0.05704057]
[1765770336290,0.50350029,89346.0,89345.0,0.05704057]
[1765770337097,0.14270029,89346.0,89345.0,0.05704057]
[1765770337295,0.06213792,89346.0,89345.0,0.05704057]
[1765770338595,0.1225064,89346.0,89345.0,0.05704057]
[1765770338790,0.42293792,89346.0,89345.0,0.05704057]
[1765770339190,0.37893792,89346.0,89345.0,2.057e-05]
[1765770339792,0.43490792,89346.0,89345.0,0.05704057]
[1765770343911,0.42293792,89346.0,89345.0,0.05704057]
[1765770345394,0.06213792,89346.0,89345.0,0.05704057]
[1765770349522,0.00616792,89346.0,89345.0,0.05704057]
[1765770349717,0.13887563,89371.0,89362.0,0.0682095]
[1765770349718,0.05597,89363.0,89362.0,0.0682095]
[1765770350317,0.02754,89363.0,89362.0,0.0682095]
[1765770351020,0.05613792,89371.0,89370.0,0.0682085]
[1765770352306,0.07013792,89371.0,89370.0,0.0702085]
[1765770352707,0.01416792,89371.0,89370.0,0.0868485]
[1765770353010,0.04170792,89371.0,89370.0,0.0868485]
[1765770353211,0.07013792,89371.0,89370.0,0.0868485]
[1765770353713,0.08413792,89371.0,89370.0,0.0878485]
[1765770354717,0.07013792,89371.0,89370.0,0.0868485]
[1765770355022,0.06413792,89371.0,89370.0,0.0868485]
[1765770356919,0.06413792,89371.0,89370.0,0.002]
[1765770357108,0.06413792,89371.0,89362.0,0.00016792]
[1765770357109,0.05702,89363.0,89362.0,0.00016792]
[1765770357617,0.05702,89363.0,89362.0,0.05761792]
[1765770357818,0.02858,89363.0,89362.0,0.05761792]
[1765770358206,0.05702,89363.0,89362.0,0.05761792]
[1765770358521,0.06002,89363.0,89362.0,0.05861792]
[1765770358717,0.06202,89363.0,89362.0,0.05961792]
[1765770360716,0.005,89363.0,89362.0,0.05961792]
[1765770361218,0.00016792,89371.0,89370.0,0.0799785]
[1765770361415,0.00016792,89371.0,89370.0,0.4407785]
[1765770362623,0.00516792,89371.0,89370.0,0.4417785]
[1765770363019,0.03374792,89371.0,89370.0,0.4417785]
[1765770363325,0.06218792,89371.0,89370.0,0.4417785]
[1765770363717,0.06618792,89371.0,89370.0,0.4427785]
[1765770364019,0.06618792,89371.0,89370.0,0.4314385]
[1765770364830,0.06618792,89371.0,89370.0,0.4483985]
[1765770367832,0.06618792,89371.0,89370.0,0.4314385]
[1765770368621,0.06618792,89371.0,89370.0,0.4483985]
[1765770369528,0.03774792,89371.0,89370.0,0.4483985]
[1765770369835,0.02858,89386.0,89385.0,0.0782066]
[1765770370028,0.14176132,89386.0,89385.0,0.0782066]
[1765770370222,0.14176132,89386.0,89385.0,0.0686366]
[1765770371234,0.08161668,89386.0,89385.0,0.0696366]
[1765770371424,0.09361668,89386.0,89385.0,0.0696366]
[1765770371625,0.16675995,89386.0,89385.0,0.0706366]
[1765770372330,0.10661668,89386.0,89385.0,0.0706366]
[1765770374023,0.10661668,89386.0,89385.0,0.0131866]
[1765770374224,0.10661668,89386.0,89385.0,0.002]
[1765770377429,0.10661668,89386.0,89385.0,0.03005]
[1765770378635,0.10661668,89386.0,89385.0,0.05945]
[1765770380236,0.10661668,89386.0,89385.0,0.03005]
[1765770380436,0.10661668,89386.0,89385.0,0.05945]
[1765770397348,0.18717905,89386.0,89385.0,0.05945]
[1765770398555,0.10661668,89386.0,89385.0,0.05945]
[1765770404348,0.16701496,89386.0,89385.0,0.05945]
[1765770404547,0.16701496,89386.0,89385.0,0.002]
[1765770404548,0.10661668,89386.0,89385.0,0.002]
[1765770404856,0.46741668,89386.0,89385.0,0.002]
[1765770408054,0.46741668,89386.0,89385.0,0.03048]
[1765770408352,0.46741668,89386.0,89385.0,0.05977]
[1765770408751,0.10661668,89386.0,89385.0,0.05977]
[1765770409254,0.10661668,89386.0,89385.0,0.07605]
[1765770410951,0.10661668,89386.0,89385.0,0.05977]
[1765770411151,0.10661668,89386.0,89385.0,0.002]
[1765770411553,0.10661668,89386.0,89385.0,0.03048]
[1765770411752,0.10661668,89386.0,89385.0,0.05977]
[1765770418649,0.18709804,89386.0,89385.0,0.05977]
[1765770420059,0.07817668,89386.0,89385.0,0.05977]
[1765770420456,0.10793668,89386.0,89385.0,0.05977]
[1765770420857,0.07817668,89386.0,89385.0,0.05977]
[1765770421056,0.04959668,89386.0,89385.0,0.05977]
[1765770421258,0.04959668,89386.0,89385.0,0.45977]
[1765770421259,0.025,89386.0,89385.0,0.45977]
[1765770421458,0.04959668,89386.0,89385.0,0.45977]
[1765770421659,9e-08,89392.0,89391.0,0.0680859]
[1765770421866,0.00016782,89394.0,89393.0,0.0569]
[1765770423365,0.00616782,89394.0,89393.0,0.0569]
[1765770424261,0.00616782,89394.0,89393.0,0.4569]
[1765770424465,2e-08,89394.0,89393.0,0.4569]
[1765770426963,0.00016782,89402.0,89401.0,0.0569]
[1765770427158,0.00016782,89402.0,89401.0,0.4177]
[1765770428256,0.00016782,89402.0,89401.0,0.44022978]
[1765770428852,0.00716782,89402.0,89401.0,0.44022978]
[1765770429066,0.07649,89420.0,89419.0,0.0680824]
[1765770429266,0.07649,89420.0,89419.0,0.4288824]
[1765770430165,0.08349,89420.0,89419.0,0.4288824]
[1765770432266,0.09049,89420.0,89419.0,0.4288824]
[1765770433362,0.09049,89420.0,89419.0,0.4005624]
[1765770433559,0.11409579,89420.0,89419.0,0.4005624]
[1765770434269,0.11409579,89420.0,89419.0,0.4288824]
[1765770438482,0.11409579,89420.0,89419.0,0.0680824]
[1765770438747,0.11409579,89420.0,89419.0,0.4288824]
[1765770445200,0.08433579,89420.0,89419.0,0.4288824]
[1765770445592,0.11409579,89420.0,89419.0,0.4288824]
[1765770446400,0.11409579,89420.0,89419.0,0.0111824]
[1765770446605,0.11409579,89420.0,89419.0,0.0397624]
[1765770446995,0.11409579,89420.0,89419.0,0.0685724]
[1765770453694,0.11137579,89420.0,89419.0,0.0685724]
[1765770458407,0.19185715,89420.0,89419.0,0.0685724]
[1765770468312,0.11137579,89420.0,89419.0,0.0685724]
[1765770469010,0.11137579,89420.0,89419.0,0.0111824]
[1765770469206,0.11137579,89420.0,89411.0,0.00016782]
[1765770469207,0.0745,89412.0,89411.0,0.00016782]
[1765770469414,0.09810579,89412.0,89411.0,0.00016782]
[1765770470517,0.10410579,89412.0,89411.0,0.00016782]
[1765770470906,0.10910579,89412.0,89411.0,0.00016782]
[1765770472318,0.01752,89404.0,89400.0,0.0111847]
[1765770472512,0.05698,89401.0,89400.0,0.0111847]
[1765770472717,0.08058579,89401.0,89400.0,0.0111847]
[1765770473202,0.14081552,89401.0,89400.0,0.0111847]
[1765770473619,0.14081552,89401.0,89400.0,0.0141847]
[1765770474318,0.08058579,89401.0,89400.0,0.0181847]
[1765770474710,0.08058579,89401.0,89400.0,0.0151847]
[1765770475016,0.08058579,89401.0,89400.0,0.0181847]
[1765770477316,0.15200012,89401.0,89400.0,0.007]
[1765770477812,0.09177039,89401.0,89400.0,0.007]
[1765770478818,0.09177039,89401.0,89400.0,0.003]
[1765770479006,0.09177039,89401.0,89400.0,0.006]
[1765770480012,0.09177039,89401.0,89400.0,0.005]
[1765770480416,0.09177039,89401.0,89400.0,0.002]
[1765770480615,0.09177039,89401.0,89400.0,0.005]
[1765770481609,0.45257039,89401.0,89400.0,0.003]
[1765770481818,0.45257039,89401.0,89400.0,0.005]
[1765770483218,0.45257039,89401.0,89400.0,0.002]
[1765770483418,0.45257039,89401.0,89400.0,0.005]
[1765770485921,0.0682756,89393.0,89392.0,0.00016782]
[1765770486119,0.08069579,89393.0,89392.0,0.00016782]
[1765770487124,0.08069579,89393.0,89392.0,0.00216782]
[1765770487328,0.08069579,89393.0,89392.0,0.06082782]
[1765770487827,0.08069579,89393.0,89392.0,0.06482782]
[1765770497426,0.08069579,89393.0,89392.0,0.03497782]
[1765770497618,0.44149579,89393.0,89392.0,0.00616782]
[1765770497923,0.05709,89373.0,89372.0,0.41946]
[1765770498120,0.08069579,89373.0,89372.0,0.41946]
[1765770499921,0.08069579,89373.0,89372.0,0.42246]
[1765770500626,0.08069579,89373.0,89372.0,0.42546]
[1765770507530,0.08069579,89373.0,89372.0,0.06466]
[1765770509517,0.05328579,89373.0,89372.0,0.06466]
[1765770509922,0.08230579,89373.0,89372.0,0.06466]
[1765770513135,0.08230579,89373.0,89372.0,0.06318]
[1765770520438,0.08230579,89373.0,89372.0,0.006]
[1765770521036,0.44310579,89373.0,89372.0,0.006]
[1765770521538,0.44310579,89373.0,89372.0,0.03331]
[1765770522544,0.44310579,89373.0,89372.0,0.03231]
[1765770522739,0.44310579,89373.0,89372.0,0.02931]
[1765770523041,0.44310579,89373.0,89372.0,0.03231]
[1765770527238,0.08230579,89373.0,89372.0,0.03231]
[1765770528930,0.08230579,89373.0,89372.0,0.005]
[1765770531140,0.08230579,89373.0,89372.0,0.03231]
[1765770531332,0.09891579,89373.0,89372.0,0.03231]
[1765770536849,0.07531,89373.0,89372.0,0.03231]
[1765770537054,0.09909892,89373.0,89372.0,0.03231]
[1765770540647,0.09909892,89373.0,89372.0,0.005]
[1765770540942,0.09909892,89373.0,89372.0,0.03316]
[1765770541142,0.09909892,89373.0,89372.0,0.06203]
[1765770541944,0.13042063,89373.0,89372.0,0.06203]
[1765770542244,0.15918063,89373.0,89372.0,0.06203]
[1765770542447,0.09883892,89373.0,89372.0,0.06203]
[1765770560761,0.07505,89373.0,89372.0,0.06203]
[1765770560963,0.09895179,89373.0,89372.0,0.06203]
[1765770574472,0.09895179,89373.0,89372.0,0.03316]
[1765770574777,0.09895179,89373.0,89372.0,0.005]
[1765770576165,0.09895179,89373.0,89372.0,0.05808]
[1765770576469,0.02390179,89373.0,89372.0,0.06108]
[1765770576657,0.05303179,89373.0,89372.0,0.06108]
[1765770577065,0.08245179,89373.0,89372.0,0.06108]
[1765770577265,0.09984179,89373.0,89372.0,0.06108]
[1765770577763,0.09984179,89373.0,89372.0,0.05908]
[1765770577967,0.09984179,89373.0,89372.0,0.06008]
[1765770578270,0.09984179,89373.0,89372.0,0.05908]
[1765770578469,0.09984179,89373.0,89372.0,0.06108]
[1765770578671,0.09984179,89373.0,89372.0,0.06008]
[1765770578973,0.09984179,89373.0,89372.0,0.06408]
[1765770580774,0.02390179,89373.0,89372.0,0.06408]
[1765770582069,0.01873396,89373.0,89372.0,0.06408]
[1765770582976,0.00016782,89381.0,89380.0,0.0792972]
[1765770583179,2e-08,89381.0,89380.0,0.4400972]
[1765770584681,2e-08,89381.0,89380.0,0.4440972]
[1765770585674,0.06721906,89394.0,89393.0,0.0692656]
[1765770585976,0.06721906,89394.0,89393.0,0.4300656]
[1765770587470,0.06721906,89394.0,89393.0,0.4310656]
[1765770587873,0.06721906,89394.0,89393.0,0.4320656]
[1765770588874,0.06721906,89394.0,89393.0,0.4330656]
[1765770589682,0.06721906,89394.0,89393.0,0.4320656]
[1765770589880,0.06721906,89394.0,89393.0,0.4340656]
[1765770590774,0.02913,89394.0,89393.0,0.4340656]
[1765770590970,0.05855,89394.0,89393.0,0.4340656]
[1765770595190,0.082173,89394.0,89393.0,0.4340656]
[1765770595687,0.082173,89394.0,89393.0,0.0732656]
[1765770597385,0.099993,89394.0,89393.0,0.0732656]
[1765770605297,0.16040156,89394.0,89393.0,0.0732656]
[1765770606397,0.099993,89394.0,89393.0,0.0732656]
[1765770607796,0.099993,89394.0,89393.0,0.0151856]
[1765770608186,0.099993,89394.0,89393.0,0.004]
[1765770613704,0.099993,89394.0,89393.0,0.004]
[1765770614697,0.460793,89394.0,89393.0,0.003]
[1765770615195,0.460793,89394.0,89393.0,0.002]
[1765770615390,0.05718,89391.0,89390.0,0.0111859]
[1765770615591,0.080803,89391.0,89390.0,0.0111859]
[1765770616699,0.01782,89388.0,89386.0,0.0111864]
[1765770617000,0.07172,89372.0,89371.0,0.0111884]
[1765770617195,0.095343,89372.0,89371.0,0.0694484]
[1765770618495,0.095343,89372.0,89371.0,0.0714484]
[1765770618694,0.095343,89372.0,89371.0,0.0744484]
[1765770624602,0.050883,89372.0,89371.0,0.0744484]
[1765770624809,0.023623,89372.0,89371.0,0.0744484]
[1765770625199,0.0122614,89372.0,89371.0,0.0744484]
[1765770625503,0.00016782,89380.0,89379.0,0.0694474]
[1765770625692,0.00016782,89380.0,89379.0,0.4302474]
[1765770626997,0.00016782,89380.0,89379.0,0.4322474]
[1765770627711,0.00016782,89380.0,89379.0,0.4332474]
[1765770634117,0.07249782,89380.0,89379.0,0.4332474]
[1765770634923,0.07249782,89380.0,89379.0,0.42206]
[1765770635103,0.07249782,89380.0,89379.0,0.39352]
[1765770635608,0.07249782,89380.0,89379.0,0.003]
[1765770637416,0.09600101,89380.0,89379.0,0.003]
[1765770647220,0.09600101,89380.0,89379.0,0.03186]
[1765770648620,0.09600101,89380.0,89379.0,0.003]
[1765770651226,0.09631084,89380.0,89379.0,0.003]
[1765770657829,0.09631084,89380.0,89379.0,0.03202]
[1765770658123,0.09631084,89380.0,89379.0,0.003]
[1765770660225,0.15663914,89380.0,89379.0,0.003]
[1765770662431,0.09631084,89380.0,89379.0,0.003]
[1765770663732,0.09631084,89380.0,89379.0,0.0599]
[1765770664129,0.09631084,89380.0,89379.0,0.03202]
[1765770664427,0.09631084,89380.0,89379.0,0.003]
[1765770666923,0.45711084,89380.0,89379.0,0.003]
[1765770669136,0.09631084,89380.0,89379.0,0.003]
[1765770678631,0.09631084,89380.0,89379.0,0.0141874]
[1765770680938,0.10749804,89380.0,89379.0,0.003]
[1765770682039,0.10749804,89380.0,89379.0,0.03202]
[1765770682547,0.10749804,89380.0,89379.0,0.003]
[1765770688452,0.1880144,89380.0,89379.0,0.003]
[1765770689755,0.5488144,89380.0,89379.0,0.003]
[1765770698462,0.46829804,89380.0,89379.0,0.003]
[1765770704259,0.45711084,89380.0,89379.0,0.05936]
[1765770704655,0.45732041,89380.0,89379.0,0.05936]
[1765770705468,0.08020041,89380.0,89379.0,0.42016]
[1765770705864,0.02419041,89380.0,89379.0,0.42016]
[1765770707161,0.02419041,89380.0,89379.0,0.42116]
[1765770707563,0.02419041,89380.0,89379.0,0.42316]
[1765770707762,0.02419041,89380.0,89379.0,0.42016]
[1765770707964,0.02419041,89380.0,89379.0,0.4339]
[1765770708769,0.02419041,89380.0,89379.0,0.4349]
[1765770709464,0.02419041,89380.0,89379.0,0.4359]